[Event "*** Titled Tuesday Blitz"]
[Site "Chess.com"]
[Date "2021.03.02"]
[Round "3"]
[White "SlavenPastar"]
[Black "Kale36"]
[Result "1/2-1/2"]
[WhiteElo "2582"]
[BlackElo "2290"]
[TimeControl "180+1"]
[EndTime "10:30:15 PST"]
[Termination "Game drawn by repetition"]

1. d4 {[%clk 0:02:27.4]} 1... Nc6 {[%clk 0:03:00.9]} 2. Nf3 {[%clk 0:02:26.4]}
2... d6 {[%clk 0:03:00.8]} 3. g3 {[%clk 0:02:26]} 3... Bg4 {[%clk 0:03:00.7]} 4.
Bg2 {[%clk 0:02:25.9]} 4... e5 {[%clk 0:03:00.9]} 5. d5 {[%clk 0:02:24]} 5...
Nce7 {[%clk 0:03:00.5]} 6. O-O {[%clk 0:02:22.9]} 6... Nf6 {[%clk 0:03:00.8]} 7.
c4 {[%clk 0:02:21.6]} 7... g6 {[%clk 0:03:01]} 8. Nc3 {[%clk 0:02:20.2]} 8...
Bg7 {[%clk 0:03:01.2]} 9. Bg5 {[%clk 0:02:14.7]} 9... O-O {[%clk 0:03:00.5]} 10.
Qd2 {[%clk 0:02:13.9]} 10... Qd7 {[%clk 0:02:57.6]} 11. Bh6 {[%clk 0:02:12.1]}
11... Bh3 {[%clk 0:02:54.8]} 12. Bxg7 {[%clk 0:02:04.7]} 12... Kxg7 {[%clk
0:02:52.3]} 13. Qg5 {[%clk 0:02:01]} 13... Bxg2 {[%clk 0:02:50.9]} 14. Kxg2
{[%clk 0:01:59.4]} 14... h6 {[%clk 0:02:49.9]} 15. Qd2 {[%clk 0:01:57.8]} 15...
Nh7 {[%clk 0:02:46.8]} 16. b4 {[%clk 0:01:45]} 16... Qg4 {[%clk 0:02:36.2]} 17.
c5 {[%clk 0:01:30.6]} 17... Ng5 {[%clk 0:02:21.4]} 18. Nxg5 {[%clk 0:01:22.4]}
18... hxg5 {[%clk 0:02:19]} 19. h3 {[%clk 0:01:10.5]} 19... Qxb4 {[%clk
0:02:15]} 20. cxd6 {[%clk 0:01:10]} 20... Qxd6 {[%clk 0:02:14.3]} 21. Qxg5
{[%clk 0:01:05.8]} 21... f6 {[%clk 0:02:05.6]} 22. Qg4 {[%clk 0:00:58.6]} 22...
f5 {[%clk 0:02:02.1]} 23. Qc4 {[%clk 0:00:51.3]} 23... a6 {[%clk 0:01:59.3]} 24.
a4 {[%clk 0:00:50.6]} 24... Rad8 {[%clk 0:01:57.5]} 25. Rfd1 {[%clk 0:00:46.9]}
25... Rd7 {[%clk 0:01:48.2]} 26. a5 {[%clk 0:00:44.1]} 26... Rfd8 {[%clk
0:01:47.7]} 27. Rab1 {[%clk 0:00:42.2]} 27... c6 {[%clk 0:01:35.2]} 28. Rb6
{[%clk 0:00:38.1]} 28... Qf6 {[%clk 0:01:18.1]} 29. dxc6 {[%clk 0:00:33.7]}
29... Rxd1 {[%clk 0:01:15.7]} 30. cxb7 {[%clk 0:00:24.7]} 30... R1d6 {[%clk
0:01:04.4]} 31. b8=Q {[%clk 0:00:20.8]} 31... Rxb8 {[%clk 0:01:03.8]} 32. Rxb8
{[%clk 0:00:21.7]} 32... Rc6 {[%clk 0:00:58]} 33. Qb4 {[%clk 0:00:17.3]} 33...
Qd6 {[%clk 0:00:55.3]} 34. Qxd6 {[%clk 0:00:15.8]} 34... Rxd6 {[%clk 0:00:56.2]}
35. Rb6 {[%clk 0:00:15.3]} 35... Nc8 {[%clk 0:00:56.3]} 36. Rb7+ {[%clk
0:00:08.9]} 36... Kf6 {[%clk 0:00:54.4]} 37. Rc7 {[%clk 0:00:09.3]} 37... Ne7
{[%clk 0:00:51.2]} 38. Ra7 {[%clk 0:00:05.5]} 38... Ke6 {[%clk 0:00:46.9]} 39.
Na4 {[%clk 0:00:05.6]} 39... Nd5 {[%clk 0:00:41.9]} 40. Rxa6 {[%clk 0:00:04.7]}
40... Rxa6 {[%clk 0:00:36.8]} 41. Nc5+ {[%clk 0:00:04.9]} 41... Kd6 {[%clk
0:00:35.5]} 42. Nxa6 {[%clk 0:00:05.8]} 42... e4 {[%clk 0:00:34.1]} 43. f3
{[%clk 0:00:04]} 43... Ne3+ {[%clk 0:00:32.1]} 44. Kf2 {[%clk 0:00:03.9]} 44...
Nd1+ {[%clk 0:00:31.7]} 45. Ke1 {[%clk 0:00:04.5]} 45... Nb2 {[%clk 0:00:31.2]}
46. h4 {[%clk 0:00:04.2]} 46... Nc4 {[%clk 0:00:31]} 47. fxe4 {[%clk 0:00:03.9]}
47... fxe4 {[%clk 0:00:30.3]} 48. g4 {[%clk 0:00:04]} 48... Nxa5 {[%clk
0:00:29.6]} 49. h5 {[%clk 0:00:04.4]} 49... gxh5 {[%clk 0:00:30.1]} 50. gxh5
{[%clk 0:00:05.3]} 50... Ke5 {[%clk 0:00:30.7]} 51. Nc5 {[%clk 0:00:05.7]} 51...
e3 {[%clk 0:00:28.9]} 52. Kf1 {[%clk 0:00:05.6]} 52... Nc6 {[%clk 0:00:24.5]}
53. Kg2 {[%clk 0:00:06.1]} 53... Nd4 {[%clk 0:00:24.8]} 54. Kf1 {[%clk
0:00:05.8]} 54... Kf5 {[%clk 0:00:24.3]} 55. Nd3 {[%clk 0:00:05.7]} 55... Kg5
{[%clk 0:00:23.2]} 56. Ne5 {[%clk 0:00:05.3]} 56... Kxh5 {[%clk 0:00:22.9]} 57.
Nf3 {[%clk 0:00:05.7]} 57... Nxf3 {[%clk 0:00:10.4]} 58. exf3 {[%clk 0:00:06.6]}
58... Kg5 {[%clk 0:00:10.6]} 59. Ke1 {[%clk 0:00:06.3]} 59... Kf5 {[%clk
0:00:10.7]} 60. Kd1 {[%clk 0:00:06]} 60... Ke5 {[%clk 0:00:10.6]} 61. Ke1 {[%clk
0:00:06.1]} 61... Kf5 {[%clk 0:00:09.4]} 62. Kf1 {[%clk 0:00:06.2]} 62... Ke5
{[%clk 0:00:09.4]} 63. Ke2 {[%clk 0:00:04]} 63... Kf4 {[%clk 0:00:09.7]} 64. Ke1
{[%clk 0:00:04.4]} 64... Kxf3 {[%clk 0:00:10.2]} 65. Kf1 {[%clk 0:00:04.9]}
65... Ke4 {[%clk 0:00:09.5]} 66. Ke2 {[%clk 0:00:05.3]} 66... Kd4 {[%clk
0:00:10.4]} 67. Ke1 {[%clk 0:00:05.6]} 67... Ke5 {[%clk 0:00:10.8]} 68. Ke2
{[%clk 0:00:05.9]} 68... Kf4 {[%clk 0:00:11.7]} 69. Ke1 {[%clk 0:00:06.4]} 69...
Kf3 {[%clk 0:00:12.2]} 70. Kf1 {[%clk 0:00:06.6]} 70... Ke4 {[%clk 0:00:13.1]}
71. Ke2 {[%clk 0:00:07.2]} 71... Kd4 {[%clk 0:00:13.2]} 72. Ke1 {[%clk
0:00:07.4]} 72... Kd3 {[%clk 0:00:14.1]} 73. Kd1 {[%clk 0:00:07.3]} 73... Kd4
{[%clk 0:00:13.5]} 74. Ke2 {[%clk 0:00:07.5]} 74... Ke4 {[%clk 0:00:13.1]} 75.
Ke1 {[%clk 0:00:07.8]} 75... Kf5 {[%clk 0:00:14]} 76. Ke2 {[%clk 0:00:07.9]}
76... Kf4 {[%clk 0:00:14.7]} 77. Ke1 {[%clk 0:00:08.2]} 77... Ke4 {[%clk
0:00:14.7]} 78. Ke2 {[%clk 0:00:08.5]} 1/2-1/2

[Event "*** Titled Tuesday Blitz"]
[Site "Chess.com"]
[Date "2021.03.02"]
[Round "3"]
[White "Chesspirate_Channel"]
[Black "enriquetejedor"]
[Result "0-1"]
[WhiteElo "2325"]
[BlackElo "2541"]
[TimeControl "180+1"]
[EndTime "10:30:20 PST"]
[Termination "enriquetejedor won on time"]

1. d4 {[%clk 0:03:00.9]} 1... Nf6 {[%clk 0:02:50.2]} 2. Nc3 {[%clk 0:02:59.6]}
2... d5 {[%clk 0:02:44.9]} 3. Bg5 {[%clk 0:02:58.9]} 3... Nbd7 {[%clk
0:02:42.8]} 4. f3 {[%clk 0:02:49.8]} 4... c6 {[%clk 0:02:02.9]} 5. e4 {[%clk
0:02:44.1]} 5... dxe4 {[%clk 0:02:02.4]} 6. Qd2 {[%clk 0:02:42.1]} 6... exf3
{[%clk 0:01:57.3]} 7. Nxf3 {[%clk 0:02:43]} 7... e6 {[%clk 0:01:52.4]} 8. Bd3
{[%clk 0:02:40.3]} 8... Be7 {[%clk 0:01:49.6]} 9. O-O-O {[%clk 0:02:39.9]} 9...
a5 {[%clk 0:01:37.7]} 10. Ne5 {[%clk 0:02:14.5]} 10... Nxe5 {[%clk 0:01:25.9]}
11. dxe5 {[%clk 0:02:15.4]} 11... Nd7 {[%clk 0:01:26.6]} 12. Bf4 {[%clk
0:02:02.7]} 12... Nc5 {[%clk 0:01:24.6]} 13. Qe2 {[%clk 0:02:02.3]} 13... Qb6
{[%clk 0:01:15.1]} 14. Ne4 {[%clk 0:02:00.1]} 14... Nxe4 {[%clk 0:01:10.8]} 15.
Bxe4 {[%clk 0:01:46.6]} 15... a4 {[%clk 0:01:10.2]} 16. a3 {[%clk 0:01:00.2]}
16... Bd7 {[%clk 0:00:53.8]} 17. Qg4 {[%clk 0:00:59.9]} 17... g6 {[%clk
0:00:52.3]} 18. Bg5 {[%clk 0:00:31.5]} 18... Qc5 {[%clk 0:00:48.6]} 19. Rd3
{[%clk 0:00:22.2]} 19... Qxe5 {[%clk 0:00:38.1]} 20. Bxe7 {[%clk 0:00:19.2]}
20... Kxe7 {[%clk 0:00:39]} 21. Rhd1 {[%clk 0:00:08.4]} 21... Rad8 {[%clk
0:00:22.1]} 22. Qh4+ {[%clk 0:00:08.4]} 22... g5 {[%clk 0:00:21]} 23. Qe1 {[%clk
0:00:04.5]} 23... f5 {[%clk 0:00:03.9]} 24. Bxf5 {[%clk 0:00:03.6]} 24... Qxe1
{[%clk 0:00:03.2]} 25. Rxe1 {[%clk 0:00:03.3]} 25... Rhf8 {[%clk 0:00:02.1]} 26.
Bxh7 {[%clk 0:00:03.1]} 26... Bc8 {[%clk 0:00:02.3]} 27. Be4 {[%clk 0:00:04]}
27... Rxd3 {[%clk 0:00:01.9]} 28. cxd3 {[%clk 0:00:04.5]} 28... Rh8 {[%clk
0:00:02.8]} 29. Re2 {[%clk 0:00:04.7]} 29... Rxh2 {[%clk 0:00:02.3]} 30. Kd2
{[%clk 0:00:05.6]} 30... Rh1 {[%clk 0:00:02.6]} 31. Kc3 {[%clk 0:00:06.5]} 31...
Rh6 {[%clk 0:00:02.8]} 32. Rc2 {[%clk 0:00:07.4]} 32... Rh8 {[%clk 0:00:02.9]}
33. Rf2 {[%clk 0:00:07.4]} 33... Rd8 {[%clk 0:00:02.8]} 34. Bg6 {[%clk
0:00:07.4]} 34... Kd6 {[%clk 0:00:02.6]} 35. Rf7 {[%clk 0:00:07.5]} 35... b5
{[%clk 0:00:02.9]} 36. Be4 {[%clk 0:00:07.1]} 36... e5 {[%clk 0:00:03]} 37. Rg7
{[%clk 0:00:07.2]} 37... g4 {[%clk 0:00:02.4]} 38. Rg6+ {[%clk 0:00:06.8]} 38...
Be6 {[%clk 0:00:02.8]} 39. Bf5 {[%clk 0:00:07]} 39... Re8 {[%clk 0:00:03]} 40.
Bxe6 {[%clk 0:00:07.5]} 40... Rxe6 {[%clk 0:00:03.3]} 41. Rxg4 {[%clk
0:00:08.4]} 41... Rf6 {[%clk 0:00:03.3]} 42. Rg5 {[%clk 0:00:08.3]} 42... c5
{[%clk 0:00:02.8]} 43. g4 {[%clk 0:00:08.1]} 43... Kd5 {[%clk 0:00:03.1]} 44.
Rg8 {[%clk 0:00:08.1]} 44... Rf1 {[%clk 0:00:03.2]} 45. Rd8+ {[%clk 0:00:07.7]}
45... Kc6 {[%clk 0:00:03.8]} 46. Re8 {[%clk 0:00:07.3]} 46... Rc1+ {[%clk
0:00:04]} 47. Kd2 {[%clk 0:00:07.1]} 47... Rg1 {[%clk 0:00:04.9]} 48. Rxe5
{[%clk 0:00:06.8]} 48... Rxg4 {[%clk 0:00:05.1]} 49. Re6+ {[%clk 0:00:07.4]}
49... Kd5 {[%clk 0:00:05.1]} 50. Re8 {[%clk 0:00:07]} 50... b4 {[%clk
0:00:04.7]} 51. Rd8+ {[%clk 0:00:06.7]} 51... Kc6 {[%clk 0:00:04.7]} 52. Rc8+
{[%clk 0:00:06.9]} 52... Kb6 {[%clk 0:00:04.1]} 53. Rb8+ {[%clk 0:00:07.1]}
53... Kc7 {[%clk 0:00:04.2]} 54. Rb5 {[%clk 0:00:07.2]} 54... Rg2+ {[%clk
0:00:04.1]} 55. Ke3 {[%clk 0:00:06.5]} 55... Rxb2 {[%clk 0:00:01.5]} 56. Rxc5+
{[%clk 0:00:06.5]} 56... Kb6 {[%clk 0:00:02]} 57. axb4 {[%clk 0:00:07.4]} 57...
Rxb4 {[%clk 0:00:02.1]} 58. Rc1 {[%clk 0:00:04.7]} 58... a3 {[%clk 0:00:02.5]}
59. Ra1 {[%clk 0:00:04.9]} 59... Kb5 {[%clk 0:00:02.8]} 60. Kd2 {[%clk
0:00:05.2]} 60... Ka4 {[%clk 0:00:02.9]} 61. Kc2 {[%clk 0:00:05.2]} 61... Rb2+
{[%clk 0:00:02.8]} 62. Kc3 {[%clk 0:00:05.5]} 62... Rb8 {[%clk 0:00:02.7]} 63.
d4 {[%clk 0:00:05.6]} 63... Rc8+ {[%clk 0:00:03.1]} 64. Kd3 {[%clk 0:00:06]}
64... Kb3 {[%clk 0:00:03.7]} 65. d5 {[%clk 0:00:06.3]} 65... Kb2 {[%clk
0:00:03.5]} 66. Rf1 {[%clk 0:00:03.4]} 66... a2 {[%clk 0:00:03.2]} 67. Rf2+
{[%clk 0:00:03.4]} 67... Kb3 {[%clk 0:00:03]} 68. Rf1 {[%clk 0:00:03.4]} 68...
Kb2 {[%clk 0:00:03.2]} 69. Rf2+ {[%clk 0:00:03.4]} 69... Ka3 {[%clk 0:00:03.6]}
70. Rf1 {[%clk 0:00:03.6]} 70... Rb8 {[%clk 0:00:03.8]} 71. Kd4 {[%clk
0:00:03.7]} 71... Rb1 {[%clk 0:00:03.6]} 72. Rf3+ {[%clk 0:00:03.9]} 72... Kb4
{[%clk 0:00:03.5]} 73. d6 {[%clk 0:00:01.4]} 73... a1=Q+ {[%clk 0:00:03.9]} 74.
Kd5 {[%clk 0:00:01.8]} 74... Qa8+ {[%clk 0:00:04]} 0-1

[Event "*** Titled Tuesday Blitz"]
[Site "Chess.com"]
[Date "2021.03.02"]
[Round "3"]
[White "Gerodot71"]
[Black "Rytenko_V"]
[Result "0-1"]
[WhiteElo "2546"]
[BlackElo "2385"]
[TimeControl "180+1"]
[EndTime "10:30:21 PST"]
[Termination "Rytenko_V won by checkmate"]

1. d4 {[%clk 0:03:00.9]} 1... d5 {[%clk 0:02:59.6]} 2. c4 {[%clk 0:03:00.8]}
2... e6 {[%clk 0:02:59.8]} 3. Nf3 {[%clk 0:03:01.1]} 3... f5 {[%clk 0:03:00.1]}
4. g3 {[%clk 0:02:59.2]} 4... Nf6 {[%clk 0:03:00.3]} 5. Bg2 {[%clk 0:02:59.8]}
5... c6 {[%clk 0:03:00.8]} 6. O-O {[%clk 0:03:00.4]} 6... Bd6 {[%clk 0:03:00.9]}
7. b3 {[%clk 0:03:00.9]} 7... O-O {[%clk 0:03:00.9]} 8. Nc3 {[%clk 0:02:59.9]}
8... Bd7 {[%clk 0:03:00.2]} 9. e3 {[%clk 0:02:57.2]} 9... Be8 {[%clk 0:03:00.1]}
10. Ne2 {[%clk 0:02:54.8]} 10... Nbd7 {[%clk 0:02:56.8]} 11. Nf4 {[%clk
0:02:48.3]} 11... Qe7 {[%clk 0:02:40.5]} 12. Bb2 {[%clk 0:02:44.4]} 12... Ne4
{[%clk 0:02:36.1]} 13. Qc2 {[%clk 0:02:31.8]} 13... g5 {[%clk 0:02:33]} 14. Nd3
{[%clk 0:02:32.3]} 14... Bg6 {[%clk 0:02:26.6]} 15. Qc1 {[%clk 0:02:05.3]} 15...
h6 {[%clk 0:02:22.3]} 16. a4 {[%clk 0:02:02.3]} 16... Kh7 {[%clk 0:02:15.3]} 17.
Ba3 {[%clk 0:02:00.4]} 17... Rf7 {[%clk 0:02:08.6]} 18. Nfe5 {[%clk 0:01:57.2]}
18... Bxa3 {[%clk 0:01:57.2]} 19. Qxa3 {[%clk 0:01:52.7]} 19... Qxa3 {[%clk
0:01:56]} 20. Rxa3 {[%clk 0:01:53.6]} 20... Re7 {[%clk 0:01:36.8]} 21. a5 {[%clk
0:01:44.2]} 21... a6 {[%clk 0:01:33.9]} 22. Rc1 {[%clk 0:01:40.1]} 22... Bh5
{[%clk 0:01:20.3]} 23. f3 {[%clk 0:01:33.1]} 23... Nd6 {[%clk 0:01:11.4]} 24.
Kf2 {[%clk 0:01:27.4]} 24... Nxe5 {[%clk 0:01:03.5]} 25. Nxe5 {[%clk 0:01:26.9]}
25... Nf7 {[%clk 0:01:03.4]} 26. Nd3 {[%clk 0:01:25]} 26... Bg6 {[%clk
0:01:01.6]} 27. f4 {[%clk 0:01:14.6]} 27... Rae8 {[%clk 0:01:00.5]} 28. Ra4
{[%clk 0:01:06.2]} 28... Nd6 {[%clk 0:00:56.7]} 29. Rb4 {[%clk 0:01:05.7]} 29...
Kg7 {[%clk 0:00:51.9]} 30. Ne5 {[%clk 0:01:05.7]} 30... Nf7 {[%clk 0:00:48.9]}
31. Nf3 {[%clk 0:01:00.9]} 31... Kf6 {[%clk 0:00:42.9]} 32. Ne1 {[%clk
0:00:57.7]} 32... Rh8 {[%clk 0:00:39.2]} 33. Nd3 {[%clk 0:00:55.3]} 33... h5
{[%clk 0:00:38]} 34. h4 {[%clk 0:00:51.1]} 34... g4 {[%clk 0:00:35.1]} 35. Bf1
{[%clk 0:00:50.7]} 35... Nd6 {[%clk 0:00:32.1]} 36. Bg2 {[%clk 0:00:49.7]} 36...
Rhh7 {[%clk 0:00:31.6]} 37. Nc5 {[%clk 0:00:49.4]} 37... Be8 {[%clk 0:00:26]}
38. Rb6 {[%clk 0:00:44.5]} 38... Nc8 {[%clk 0:00:23.7]} 39. Rb4 {[%clk
0:00:42.1]} 39... Nd6 {[%clk 0:00:24.1]} 40. Bf1 {[%clk 0:00:36.8]} 40... Ne4+
{[%clk 0:00:22.5]} 41. Nxe4+ {[%clk 0:00:37.2]} 41... fxe4 {[%clk 0:00:23.1]}
42. Rb6 {[%clk 0:00:32.8]} 42... Rc7 {[%clk 0:00:21.2]} 43. b4 {[%clk
0:00:31.6]} 43... Rhe7 {[%clk 0:00:17.7]} 44. Ke1 {[%clk 0:00:28.9]} 44... Kf7
{[%clk 0:00:16.3]} 45. Kd2 {[%clk 0:00:28.7]} 45... Red7 {[%clk 0:00:16.7]} 46.
Kc3 {[%clk 0:00:28.7]} 46... Re7 {[%clk 0:00:17.1]} 47. Be2 {[%clk 0:00:29]}
47... Kf8 {[%clk 0:00:17.1]} 48. Kb3 {[%clk 0:00:28.9]} 48... Kf7 {[%clk
0:00:17]} 49. Rc3 {[%clk 0:00:29.1]} 49... Kf6 {[%clk 0:00:12.9]} 50. b5 {[%clk
0:00:29.2]} 50... cxb5 {[%clk 0:00:13]} 51. cxb5 {[%clk 0:00:29.7]} 51... Rxc3+
{[%clk 0:00:12.6]} 52. Kxc3 {[%clk 0:00:30.6]} 52... Rc7+ {[%clk 0:00:11.9]} 53.
Kb2 {[%clk 0:00:29.4]} 53... axb5 {[%clk 0:00:12.2]} 54. Bxb5 {[%clk 0:00:29.8]}
54... Bxb5 {[%clk 0:00:12.1]} 55. Rxb5 {[%clk 0:00:30.7]} 55... Ke7 {[%clk
0:00:11.4]} 56. Kb3 {[%clk 0:00:30]} 56... Kd7 {[%clk 0:00:11.9]} 57. Kb4 {[%clk
0:00:29.4]} 57... Kc8 {[%clk 0:00:10.7]} 58. Rc5 {[%clk 0:00:27.3]} 58... Rxc5
{[%clk 0:00:03.3]} 59. Kxc5 {[%clk 0:00:28.2]} 59... Kc7 {[%clk 0:00:03.5]} 60.
Kb5 {[%clk 0:00:28.2]} 60... Kc8 {[%clk 0:00:01.9]} 61. Kb6 {[%clk 0:00:27.4]}
61... Kb8 {[%clk 0:00:02.4]} 62. a6 {[%clk 0:00:21.2]} 62... bxa6 {[%clk
0:00:03.3]} 63. Kxa6 {[%clk 0:00:22.1]} 63... Kc7 {[%clk 0:00:03.5]} 64. Kb5
{[%clk 0:00:22.4]} 64... Kd7 {[%clk 0:00:02.7]} 65. Kb6 {[%clk 0:00:22.3]} 65...
Kd6 {[%clk 0:00:03.2]} 66. Ka6 {[%clk 0:00:21.7]} 66... Kc6 {[%clk 0:00:03.5]}
67. Ka5 {[%clk 0:00:22.1]} 67... Kd7 {[%clk 0:00:02.6]} 68. Kb5 {[%clk
0:00:21.3]} 68... Kc7 {[%clk 0:00:02.5]} 69. Kc5 {[%clk 0:00:21.5]} 69... Kd7
{[%clk 0:00:03]} 70. f5 {[%clk 0:00:20.2]} 70... exf5 {[%clk 0:00:01.8]} 71.
Kxd5 {[%clk 0:00:19.4]} 71... f4 {[%clk 0:00:01.7]} 72. gxf4 {[%clk 0:00:18.7]}
72... g3 {[%clk 0:00:02]} 73. f5 {[%clk 0:00:19.6]} 73... g2 {[%clk 0:00:02.9]}
74. f6 {[%clk 0:00:20.5]} 74... g1=Q {[%clk 0:00:02.3]} 75. f7 {[%clk
0:00:21.4]} 75... Ke7 {[%clk 0:00:02.5]} 76. Kc6 {[%clk 0:00:21.8]} 76... Kxf7
{[%clk 0:00:02.9]} 77. d5 {[%clk 0:00:22.7]} 77... Qxe3 {[%clk 0:00:03.4]} 78.
d6 {[%clk 0:00:22.7]} 78... Qc3+ {[%clk 0:00:04.3]} 79. Kd7 {[%clk 0:00:23.6]}
79... Kf6 {[%clk 0:00:04.7]} 80. Ke8 {[%clk 0:00:23.8]} 80... Qd4 {[%clk
0:00:05]} 81. d7 {[%clk 0:00:24.7]} 81... Qxd7+ {[%clk 0:00:05.3]} 82. Kxd7
{[%clk 0:00:25.6]} 82... e3 {[%clk 0:00:06.1]} 83. Ke8 {[%clk 0:00:25.7]} 83...
e2 {[%clk 0:00:07]} 84. Kf8 {[%clk 0:00:26.6]} 84... e1=Q {[%clk 0:00:07.7]} 85.
Kg8 {[%clk 0:00:27.3]} 85... Qe7 {[%clk 0:00:07.4]} 86. Kh8 {[%clk 0:00:27]}
86... Qg7# {[%clk 0:00:07.9]} 0-1

[Event "*** Titled Tuesday Blitz"]
[Site "Chess.com"]
[Date "2021.03.02"]
[Round "3"]
[White "McCarthyStone"]
[Black "BJthechessgod"]
[Result "1/2-1/2"]
[WhiteElo "2431"]
[BlackElo "2246"]
[TimeControl "180+1"]
[EndTime "10:30:26 PST"]
[Termination "Game drawn - insufficient material"]

1. b3 {[%clk 0:03:00.9]} 1... d5 {[%clk 0:02:58.2]} 2. Bb2 {[%clk 0:03:01.8]}
2... Nc6 {[%clk 0:02:57]} 3. Nf3 {[%clk 0:03:02.3]} 3... Nf6 {[%clk 0:02:56.3]}
4. d4 {[%clk 0:03:02]} 4... Bf5 {[%clk 0:02:56.4]} 5. Nbd2 {[%clk 0:03:02.9]}
5... e6 {[%clk 0:02:55.2]} 6. a3 {[%clk 0:03:01.7]} 6... h6 {[%clk 0:02:55.1]}
7. e3 {[%clk 0:03:01.9]} 7... Bd6 {[%clk 0:02:54.3]} 8. Bd3 {[%clk 0:03:01.5]}
8... Bxd3 {[%clk 0:02:51]} 9. cxd3 {[%clk 0:03:02.4]} 9... O-O {[%clk
0:02:49.3]} 10. Rg1 {[%clk 0:03:01.5]} 10... Re8 {[%clk 0:02:45.5]} 11. Ne5
{[%clk 0:03:01.6]} 11... Bxe5 {[%clk 0:02:43.1]} 12. dxe5 {[%clk 0:03:02.5]}
12... Nd7 {[%clk 0:02:43.2]} 13. Qh5 {[%clk 0:03:02.2]} 13... Qg5 {[%clk
0:02:40.9]} 14. Qxg5 {[%clk 0:02:58.2]} 14... hxg5 {[%clk 0:02:41.8]} 15. d4
{[%clk 0:02:43]} 15... Ne7 {[%clk 0:02:26.5]} 16. h4 {[%clk 0:02:37.8]} 16...
gxh4 {[%clk 0:02:25.9]} 17. Nf3 {[%clk 0:02:36.5]} 17... Nf5 {[%clk 0:02:26.1]}
18. Rh1 {[%clk 0:02:29.8]} 18... c5 {[%clk 0:02:07.9]} 19. Nxh4 {[%clk
0:02:27.9]} 19... Nxh4 {[%clk 0:02:07]} 20. Rxh4 {[%clk 0:02:28.8]} 20... cxd4
{[%clk 0:02:05.6]} 21. exd4 {[%clk 0:02:27.3]} 21... Rac8 {[%clk 0:02:05.6]} 22.
Kd2 {[%clk 0:02:27.2]} 22... Nf8 {[%clk 0:02:00.5]} 23. g3 {[%clk 0:02:08.7]}
23... Ng6 {[%clk 0:01:58.4]} 24. Rhh1 {[%clk 0:02:04.5]} 24... b5 {[%clk
0:01:54.6]} 25. Bc3 {[%clk 0:02:03.3]} 25... Rb8 {[%clk 0:01:29.7]} 26. Bb4
{[%clk 0:01:56.3]} 26... Ne7 {[%clk 0:01:29.7]} 27. Rac1 {[%clk 0:01:52.2]}
27... Rbc8 {[%clk 0:01:25.3]} 28. Bxe7 {[%clk 0:01:40.8]} 28... Rxc1 {[%clk
0:01:20.6]} 29. Rxc1 {[%clk 0:01:41.7]} 29... Rxe7 {[%clk 0:01:20.5]} 30. Rc8+
{[%clk 0:01:42.2]} 30... Kh7 {[%clk 0:01:20.3]} 31. Rb8 {[%clk 0:01:41.4]} 31...
a6 {[%clk 0:01:13]} 32. Ra8 {[%clk 0:01:38.4]} 32... Rc7 {[%clk 0:01:13]} 33.
Rxa6 {[%clk 0:01:37.2]} 33... Kg6 {[%clk 0:01:11.3]} 34. Rb6 {[%clk 0:01:36.5]}
34... Kf5 {[%clk 0:01:11.5]} 35. f3 {[%clk 0:01:32.2]} 35... Ra7 {[%clk
0:01:04.1]} 36. Rxb5 {[%clk 0:01:31.3]} 36... Rxa3 {[%clk 0:01:04.6]} 37. Rb7
{[%clk 0:01:31.8]} 37... f6 {[%clk 0:01:01.4]} 38. exf6 {[%clk 0:00:40.4]} 38...
gxf6 {[%clk 0:00:58]} 39. Ke3 {[%clk 0:00:31.8]} 39... Ra1 {[%clk 0:00:51.8]}
40. g4+ {[%clk 0:00:29]} 40... Kg6 {[%clk 0:00:50.1]} 41. Rb6 {[%clk 0:00:29.4]}
41... Kf7 {[%clk 0:00:39.3]} 42. b4 {[%clk 0:00:29.4]} 42... Rb1 {[%clk
0:00:35.1]} 43. b5 {[%clk 0:00:28.1]} 43... Rb3+ {[%clk 0:00:35.6]} 44. Kf4
{[%clk 0:00:28.2]} 44... Rd3 {[%clk 0:00:34.3]} 45. Rb7+ {[%clk 0:00:20.1]}
45... Kg6 {[%clk 0:00:34]} 46. b6 {[%clk 0:00:20.1]} 46... Rxd4+ {[%clk
0:00:33.9]} 47. Ke3 {[%clk 0:00:20.7]} 47... Rb4 {[%clk 0:00:34.6]} 48. Rb8
{[%clk 0:00:19.2]} 48... e5 {[%clk 0:00:31.8]} 49. Kd3 {[%clk 0:00:18.4]} 49...
Kg5 {[%clk 0:00:22.8]} 50. Ke3 {[%clk 0:00:16.1]} 50... Rb3+ {[%clk 0:00:22.4]}
51. Kd2 {[%clk 0:00:14.4]} 51... Kf4 {[%clk 0:00:23.3]} 52. b7 {[%clk
0:00:13.7]} 52... Kxf3 {[%clk 0:00:19.3]} 53. g5 {[%clk 0:00:14.2]} 53... e4
{[%clk 0:00:13]} 54. gxf6 {[%clk 0:00:14.7]} 54... e3+ {[%clk 0:00:12.9]} 55.
Kc2 {[%clk 0:00:15.3]} 55... e2 {[%clk 0:00:08]} 56. f7 {[%clk 0:00:15.8]} 56...
Rc3+ {[%clk 0:00:05.7]} 57. Kxc3 {[%clk 0:00:13]} 57... e1=Q+ {[%clk 0:00:05.7]}
58. Kb3 {[%clk 0:00:12.8]} 58... Qb1+ {[%clk 0:00:05.5]} 59. Ka4 {[%clk
0:00:11.7]} 59... Qa2+ {[%clk 0:00:05.4]} 60. Kb5 {[%clk 0:00:11.5]} 60... Qb3+
{[%clk 0:00:05.6]} 61. Kc5 {[%clk 0:00:11.7]} 61... Qc4+ {[%clk 0:00:05.5]} 62.
Kd6 {[%clk 0:00:11.9]} 62... Qf4+ {[%clk 0:00:06]} 63. Ke7 {[%clk 0:00:12.3]}
63... Qxb8 {[%clk 0:00:06.6]} 64. f8=Q+ {[%clk 0:00:12.4]} 64... Qxf8+ {[%clk
0:00:06.3]} 65. Kxf8 {[%clk 0:00:13.3]} 65... d4 {[%clk 0:00:06.9]} 66. b8=Q
{[%clk 0:00:14.2]} 66... d3 {[%clk 0:00:07.2]} 67. Qb1 {[%clk 0:00:11.2]} 67...
Ke2 {[%clk 0:00:05.9]} 68. Qb5 {[%clk 0:00:11.3]} 68... Kd2 {[%clk 0:00:05.5]}
69. Ke7 {[%clk 0:00:11]} 69... Kc2 {[%clk 0:00:06.4]} 70. Qc4+ {[%clk
0:00:11.3]} 70... Kd2 {[%clk 0:00:06]} 71. Kd6 {[%clk 0:00:11]} 71... Ke3 {[%clk
0:00:06.9]} 72. Qc3 {[%clk 0:00:09.3]} 72... Ke2 {[%clk 0:00:05.9]} 73. Qe5+
{[%clk 0:00:09.8]} 73... Kd1 {[%clk 0:00:05.9]} 74. Qh5+ {[%clk 0:00:08.6]}
74... Kc1 {[%clk 0:00:05.6]} 75. Qh1+ {[%clk 0:00:08.4]} 75... Kc2 {[%clk
0:00:05.6]} 76. Qg2+ {[%clk 0:00:09.3]} 76... d2 {[%clk 0:00:05.7]} 77. Kd5
{[%clk 0:00:09.1]} 77... Kc1 {[%clk 0:00:05.8]} 78. Qg5 {[%clk 0:00:07.5]} 78...
Kc2 {[%clk 0:00:05.6]} 79. Qf5+ {[%clk 0:00:06.9]} 79... Kc3 {[%clk 0:00:03.5]}
80. Qf3+ {[%clk 0:00:06.6]} 80... Kc2 {[%clk 0:00:03.8]} 81. Qe2 {[%clk
0:00:06.3]} 81... Kc1 {[%clk 0:00:03.7]} 82. Qe3 {[%clk 0:00:06]} 82... Kc2
{[%clk 0:00:03.9]} 83. Qe2 {[%clk 0:00:03.9]} 83... Kc1 {[%clk 0:00:04]} 84. Kc4
{[%clk 0:00:03.5]} 84... d1=Q {[%clk 0:00:03.5]} 85. Qe3+ {[%clk 0:00:03.9]}
85... Qd2 {[%clk 0:00:03.7]} 86. Qa3+ {[%clk 0:00:03.6]} 86... Qb2 {[%clk
0:00:03.8]} 87. Qxb2+ {[%clk 0:00:03.4]} 87... Kxb2 {[%clk 0:00:03.8]} 1/2-1/2